bitfinex-derivatives/quotes_BTCF0:USTF0_20251120
["timestamp","ask_amount","ask_price","bid_price","bid_amount"]
[1763661528108,0.14795142,87300.0,87284.0,0.00219803]
[1763661528813,0.04442,87293.0,87292.0,0.0451]
[1763661529000,0.08898,87293.0,87292.0,0.00219803]
[1763661529605,0.00017182,87301.0,87292.0,0.04729803]
[1763661529907,0.08898,87284.0,87283.0,0.00017182]
[1763661530113,0.08898,87284.0,87283.0,0.00236985]
[1763661530917,0.08898,87284.0,87283.0,0.00017182]
[1763661531112,0.08898,87284.0,87251.0,0.0229474]
[1763661531319,0.04442,87284.0,87271.0,0.0114711]
[1763661531614,0.04442,87284.0,87262.0,0.02549]
[1763661531615,0.04442,87284.0,87273.0,0.0114708]
[1763661531912,0.06174845,87289.0,87279.0,0.01147]
[1763661532109,0.04442,87281.0,87280.0,0.00219803]
[1763661532316,0.08898,87281.0,87280.0,0.00219803]
[1763661532906,0.04442,87276.0,87275.0,0.00017182]
[1763661533109,0.11575,87276.0,87275.0,0.00017182]
[1763661534107,0.11575,87276.0,87259.0,0.0114727]
[1763661534308,0.11575,87276.0,87260.0,0.00219803]
[1763661534712,0.04442,87268.0,87267.0,0.0114716]
[1763661534911,0.04442,87268.0,87267.0,0.01366963]
[1763661535210,0.00017182,87276.0,87271.0,0.0114711]
[1763661535417,0.11530343,87276.0,87275.0,0.00219803]
[1763661535718,0.11530343,87276.0,87262.0,0.0114722]
[1763661535908,0.11530343,87276.0,87263.0,0.00219803]
[1763661536108,0.11530343,87276.0,87268.0,0.0114714]
[1763661536303,0.11530343,87276.0,87275.0,0.00219803]
[1763661537911,0.11530343,87276.0,87259.0,0.00017182]
[1763661538113,0.11530343,87276.0,87263.0,0.001]
[1763661538313,0.15641972,87276.0,87264.0,0.00219803]
[1763661538516,0.11530343,87276.0,87264.0,0.00219803]
[1763661538703,0.11530343,87276.0,87264.0,0.01367003]
[1763661538909,0.11530343,87276.0,87264.0,0.00219803]
[1763661539113,0.08898,87265.0,87264.0,0.00219803]
[1763661539308,0.04442,87269.0,87268.0,0.0114714]
[1763661539507,0.04442,87269.0,87268.0,0.01366943]
[1763661539911,0.08898,87269.0,87268.0,0.01366943]
[1763661540114,0.04442,87269.0,87268.0,0.10257943]
[1763661540809,0.04442,87269.0,87268.0,0.00219803]
[1763661540810,0.08898,87269.0,87268.0,0.00219803]
[1763661541012,0.06788629,87276.0,87268.0,0.00219803]
[1763661541013,0.04111629,87272.0,87268.0,0.00219803]
[1763661541216,0.08898,87269.0,87268.0,0.00219803]
[1763661541416,0.04442,87260.0,87259.0,0.04527182]
[1763661541614,0.04442,87260.0,87259.0,0.09127985]
[1763661541816,0.02677,87269.0,87259.0,0.09127985]
[1763661541817,0.02677,87269.0,87268.0,0.001]
[1763661542009,0.11575,87269.0,87268.0,0.00319803]
[1763661542413,0.11575,87269.0,87268.0,0.00219803]
[1763661544014,0.09021,87260.0,87259.0,0.00017182]
[1763661544211,0.09021,87260.0,87259.0,0.00236985]
[1763661544417,0.01373,87252.0,87242.0,0.0956949]
[1763661544717,0.08541,87252.0,87251.0,0.0114737]
[1763661544913,0.08541,87252.0,87251.0,0.09789173]
[1763661545114,0.03962,87258.0,87257.0,0.04109]
[1763661545310,0.04118236,87268.0,87257.0,0.08641803]
[1763661545621,0.08541,87264.0,87263.0,0.0114722]
[1763661545822,0.08541,87264.0,87263.0,0.09789023]
[1763661546020,0.00017192,87271.0,87270.0,0.0956913]
[1763661546316,0.04118236,87285.0,87284.0,0.08422]
[1763661546517,0.04118236,87290.0,87289.0,0.0956888]
[1763661546723,0.04118236,87290.0,87289.0,0.09788683]
[1763661546912,0.04118236,87291.0,87289.0,0.09788683]
[1763661548217,0.04118236,87293.0,87291.0,0.0956885]
[1763661548409,0.04135428,87299.0,87298.0,0.08422]
[1763661548616,0.00017192,87299.0,87298.0,0.08641803]
[1763661549211,1.23681192,87300.0,87299.0,0.08422]
[1763661549418,1.23681192,87300.0,87299.0,0.08641803]
[1763661551227,1.23681192,87300.0,87299.0,0.08841803]
[1763661551518,0.00017192,87308.0,87307.0,0.0114664]
[1763661551721,0.00017192,87308.0,87307.0,0.01366443]
[1763661551925,0.08558192,87308.0,87307.0,0.01366443]
[1763661552229,0.08558192,87308.0,87307.0,0.00219803]
[1763661552632,0.08558192,87308.0,87307.0,0.01366443]
[1763661553321,0.09704822,87308.0,87307.0,0.00219803]
[1763661553825,0.09704822,87308.0,87307.0,0.01366443]
[1763661554131,0.08558192,87308.0,87307.0,0.01466443]
[1763661554826,0.09704822,87308.0,87307.0,0.00319803]
[1763661555622,0.00017192,87308.0,87307.0,0.00319803]
[1763661555829,0.04118236,87332.0,87319.0,0.0114648]
[1763661556015,0.02437,87336.0,87323.0,0.01366233]
[1763661556216,0.02437,87336.0,87335.0,0.0114627]
[1763661556425,0.02437,87336.0,87335.0,0.01366073]
[1763661556619,0.01729419,87346.0,87345.0,0.0114614]
[1763661556827,0.02437,87347.0,87345.0,0.01365943]
[1763661557223,0.02437,87347.0,87337.0,0.24798218]
[1763661557224,0.08541,87338.0,87337.0,0.00017181]
[1763661557432,0.08541,87338.0,87337.0,0.00236984]
[1763661558617,0.08541,87338.0,87337.0,1.81e-06]
[1763661558822,0.096875,87318.0,87317.0,0.047]
[1763661559029,0.08541,87318.0,87317.0,0.047]
[1763661559222,0.08541,87318.0,87317.0,0.04919803]
[1763661560730,0.08541,87318.0,87317.0,0.047]
[1763661560935,0.08541,87310.0,87309.0,0.00017181]
[1763661561125,0.08541,87310.0,87309.0,0.00236984]
[1763661562032,0.06399,87321.0,87320.0,0.0114647]
[1763661562234,0.06399,87321.0,87320.0,0.01366273]
[1763661562423,0.02437,87321.0,87320.0,0.01366273]
[1763661563132,0.00017181,87326.0,87325.0,0.011464]
[1763661563319,0.00017181,87326.0,87325.0,0.01366203]
[1763661563523,0.03979181,87326.0,87325.0,0.01366203]
[1763661563726,0.08558181,87326.0,87325.0,0.00219803]
[1763661564428,0.03979181,87326.0,87325.0,0.01366203]
[1763661564635,0.08558181,87326.0,87325.0,0.01366203]
[1763661565132,0.08558181,87326.0,87325.0,0.00219803]
[1763661565525,0.10978,87321.0,87320.0,0.001]
[1763661565726,0.10978,87321.0,87320.0,0.00319803]
[1763661565926,0.10978,87321.0,87320.0,0.00219803]
[1763661566122,0.10978,87321.0,87302.0,0.011467]
[1763661566123,0.0114647,87320.0,87302.0,0.011467]
[1763661566428,0.08541,87310.0,87309.0,0.00236984]
[1763661566740,0.08541,87310.0,87309.0,0.01383594]
[1763661567126,0.08541,87310.0,87309.0,0.00236984]
[1763661567325,0.08541,87310.0,87309.0,0.00336984]
[1763661567537,0.08541,87310.0,87309.0,0.00436984]
[1763661567734,0.00017181,87326.0,87323.0,0.0114642]
[1763661568029,0.04118236,87359.0,87344.0,0.0114615]
[1763661568228,0.10978,87347.0,87346.0,0.00219803]
[1763661568421,0.10978,87347.0,87339.0,0.11224]
[1763661568422,0.08541,87340.0,87339.0,0.11224]
[1763661568625,0.11112564,87340.0,87339.0,0.12590023]
[1763661569526,0.02571564,87340.0,87339.0,0.12590023]
[1763661569925,0.06533564,87340.0,87339.0,0.12590023]
[1763661570322,0.11112564,87340.0,87339.0,0.12590023]
[1763661570521,0.08541,87337.0,87336.0,0.0114625]
[1763661570725,0.02571564,87337.0,87336.0,0.00219803]
[1763661570921,0.03962,87332.0,87331.0,0.00017181]
[1763661571122,0.0114648,87320.0,87314.0,0.0114654]
[1763661571427,0.15777,87314.0,87313.0,0.0114656]
[1763661571629,0.15777,87314.0,87313.0,0.01366363]
[1763661571822,0.15777,87314.0,87313.0,0.00219803]
[1763661572334,0.18351495,87314.0,87313.0,0.00219803]
[1763661573027,0.18351495,87314.0,87313.0,0.00319803]
[1763661573227,0.18351495,87314.0,87313.0,0.00419803]
[1763661574554,0.18608495,87314.0,87313.0,0.00419803]
[1763661574929,0.18612142,87314.0,87313.0,0.00419803]
[1763661575533,0.18612142,87314.0,87305.0,0.00017181]
[1763661575534,0.16034,87306.0,87305.0,0.00017181]
[1763661575730,0.18612142,87306.0,87305.0,0.00017181]
[1763661576130,0.16034,87291.0,87287.0,0.0238]
[1763661576326,0.16034,87272.0,87269.0,0.0114713]
[1763661576536,0.04979,87290.0,87279.0,0.01147]
[1763661576836,0.26905579,87290.0,87289.0,0.00219803]
[1763661577037,0.25371131,87290.0,87289.0,0.00219803]
[1763661577435,0.16034,87284.0,87283.0,0.0114694]
[1763661577630,0.18617788,87284.0,87283.0,0.01366743]
[1763661577829,0.02583788,87284.0,87283.0,0.17006743]
[1763661578033,0.00017181,87298.0,87297.0,0.1678677]
[1763661578227,0.00017181,87298.0,87297.0,0.17006573]
[1763661579229,0.08253181,87298.0,87297.0,0.17006573]
[1763661579737,0.16051181,87298.0,87297.0,0.01366573]
[1763661580237,0.08236,87286.0,87281.0,0.00017181]
[1763661580539,0.16034,87286.0,87285.0,0.0114693]
[1763661580735,0.16034,87286.0,87285.0,0.01366733]
[1763661581941,0.16034,87282.0,87281.0,0.00017181]
[1763661582334,0.04979,87290.0,87247.0,0.0114742]
[1763661582335,0.16034,87272.0,87247.0,0.0114742]
[1763661582534,0.16034,87272.0,87258.0,0.0114727]
[1763661582729,0.16034,87272.0,87266.0,0.0114717]
[1763661582934,0.16034,87272.0,87271.0,0.01155927]
[1763661583137,0.16034,87272.0,87271.0,0.0137573]
[1763661583533,0.16034,87272.0,87271.0,0.0022862]
[1763661583734,0.04979,87276.0,87271.0,0.0022862]
[1763661584044,0.21013,87276.0,87275.0,0.0114706]
[1763661584244,0.21013,87276.0,87271.0,0.0032862]
[1763661584245,0.16034,87272.0,87271.0,0.00108817]
[1763661584542,0.16034,87272.0,87271.0,0.0032862]
[1763661584743,0.16034,87272.0,87271.0,0.0042862]
[1763661585635,0.16034,87272.0,87271.0,0.0032862]
[1763661585933,0.16034,87272.0,87271.0,0.0042862]
[1763661586433,0.00017181,87280.0,87275.0,0.1564]
[1763661586635,0.00017181,87280.0,87279.0,0.07879803]
[1763661586828,0.08253181,87280.0,87279.0,0.09026813]
[1763661587031,0.16051181,87280.0,87279.0,0.01366813]
[1763661587750,0.16051181,87280.0,87271.0,0.00208817]
[1763661587751,0.16034,87272.0,87271.0,0.00208817]
[1763661587938,0.16034,87272.0,87271.0,0.0042862]
[1763661588542,0.16034,87272.0,87271.0,0.0032862]
[1763661588743,0.16034,87272.0,87271.0,0.0022862]
[1763661589142,0.04979,87276.0,87272.0,0.011471]
[1763661589346,0.13215,87276.0,87275.0,0.00219803]
[1763661589537,0.00017181,87280.0,87276.0,0.0114705]
[1763661589840,0.16051181,87280.0,87279.0,0.00219803]
[1763661590341,0.16051181,87280.0,87279.0,0.09026813]
[1763661591044,0.16051181,87280.0,87279.0,0.01366813]
[1763661591650,0.16051181,87280.0,87279.0,0.00319803]
[1763661592145,0.17198171,87280.0,87279.0,0.00419803]
[1763661593540,0.17198171,87280.0,87279.0,0.00319803]
[1763661593849,0.17198171,87280.0,87279.0,0.00419803]
[1763661594047,0.16051181,87280.0,87279.0,0.00419803]
[1763661594254,0.16051181,87280.0,87279.0,0.01566813]
[1763661594546,0.06167532,87303.0,87279.0,0.01566813]
[1763661594547,6e-08,87304.0,87295.0,0.056548]
[1763661594738,0.04979,87308.0,87303.0,0.00219803]
[1763661594938,0.16034,87304.0,87303.0,0.00219803]
[1763661595842,0.04979,87308.0,87307.0,0.0114664]
[1763661596045,0.21013,87308.0,87307.0,0.01366443]
[1763661597057,0.0114664,87307.0,87306.0,0.0114665]
[1763661597351,0.08236,87296.0,87295.0,0.08923981]
[1763661597540,0.16034,87296.0,87295.0,0.01383784]
[1763661598745,0.16034,87296.0,87295.0,0.00236984]
[1763661598944,0.16034,87296.0,87295.0,0.01163981]
[1763661599143,0.18534442,87296.0,87295.0,0.01163981]
[1763661599340,0.18534442,87296.0,87295.0,0.00017181]
[1763661599538,0.18534442,87296.0,87295.0,0.01383784]
[1763661599947,0.18534442,87296.0,87295.0,0.01483784]
[1763661600349,0.16034,87284.0,87283.0,0.06748]
[1763661600548,0.16034,87275.0,87274.0,0.0114706]
[1763661600752,0.16034,87272.0,87263.0,0.1122]
[1763661600944,0.08236,87255.0,87240.0,0.24781037]
[1763661601251,0.04979,87262.0,87240.0,0.00219803]
[1763661601252,0.16034,87241.0,87240.0,0.00219803]
[1763661601550,0.16034,87240.0,87239.0,1.91e-06]
[1763661601863,0.16034,87187.0,87186.0,0.08144205]
[1763661602146,0.16034,87174.0,87173.0,0.00013928]
[1763661602345,0.16034,87174.0,87173.0,0.00233731]
[1763661602346,0.16042817,87174.0,87173.0,0.00233731]
[1763661602848,0.20589817,87174.0,87173.0,0.00233731]
[1763661603257,0.1625,87165.0,87164.0,0.0114852]
[1763661603441,0.1625,87165.0,87164.0,0.00219803]
[1763661603641,0.16258817,87165.0,87146.0,0.0114875]
[1763661603841,8.817e-05,87165.0,87153.0,0.0114866]
[1763661604046,8.817e-05,87165.0,87164.0,0.16109803]
[1763661604246,8.817e-05,87165.0,87164.0,0.00219803]
[1763661604453,8.817e-05,87165.0,87147.0,0.03324]
[1763661604753,8.817e-05,87165.0,87147.0,0.03543803]
[1763661604754,0.1625,87148.0,87147.0,0.03543803]
[1763661604940,0.1625,87148.0,87119.0,0.72288]
[1763661605146,8.817e-05,87147.0,87120.0,0.00219803]
[1763661605347,0.00017215,87136.0,87121.0,0.0114908]
[1763661605547,0.00017215,87136.0,87122.0,0.00219803]
[1763661605750,0.00017215,87136.0,87123.0,0.00219803]
[1763661606051,0.00219803,87123.0,87108.0,0.0114925]
[1763661606352,0.08209,87110.0,87109.0,0.01222517]
[1763661606549,0.0022862,87110.0,87109.0,0.00073267]
[1763661606748,0.0843762,87110.0,87109.0,0.00073267]
[1763661606949,0.1647862,87110.0,87109.0,0.00073267]
[1763661607141,0.1625,87107.0,87106.0,2.03e-06]
[1763661607341,0.00219803,87107.0,87080.0,0.24781037]
[1763661607542,0.00017215,87102.0,87100.0,0.0114936]
[1763661607846,0.00017215,87102.0,87101.0,0.00073267]
[1763661608047,8.817e-05,87110.0,87109.0,0.1703925]
[1763661608242,0.09024427,87140.0,87134.0,0.0114891]
[1763661608446,0.1625,87135.0,87134.0,0.00073267]
[1763661608646,0.1625,87135.0,87116.0,0.0114915]
[1763661608647,0.1625,87113.0,87112.0,0.01284]
[1763661608843,0.1625,87110.0,87109.0,0.001]
[1763661609049,0.16469803,87110.0,87080.0,0.25897037]
[1763661609351,0.00010203,87109.0,87101.0,0.15907215]
[1763661609555,0.00219803,87108.0,87102.0,0.0114934]
[1763661609751,0.00219803,87108.0,87107.0,0.00073267]
[1763661610253,0.16469803,87108.0,87107.0,0.00073267]
[1763661610850,0.00219803,87108.0,87107.0,0.15963267]
[1763661611047,0.00219803,87108.0,87107.0,0.00073267]
[1763661611249,0.00219803,87108.0,87107.0,0.07651267]
[1763661612146,0.00219803,87108.0,87107.0,0.00073267]
[1763661612548,0.00010203,87109.0,87108.0,0.0872726]
[1763661612849,0.00017215,87118.0,87108.0,0.0872726]
[1763661612850,0.00017215,87118.0,87117.0,0.1703914]
[1763661613052,0.0114858,87160.0,87118.0,0.0114913]
[1763661613249,0.00219803,87155.0,87141.0,0.0114882]
[1763661613447,0.08209,87118.0,87107.0,0.001]
[1763661613653,0.16469803,87108.0,87107.0,0.002]
[1763661613960,0.04547,87102.0,87077.0,0.0114967]
[1763661614154,0.00219803,87101.0,87082.0,0.0114959]
[1763661614350,0.00017215,87098.0,87084.0,0.0114957]
[1763661614656,0.00017215,87098.0,87085.0,0.00073267]
[1763661614957,0.00219803,87086.0,87085.0,0.08800827]
[1763661615352,0.00219803,87086.0,87085.0,0.00073267]
[1763661615752,0.16469803,87086.0,87085.0,0.00073267]
[1763661615950,0.00017215,87098.0,87085.0,0.00173267]
[1763661616156,0.00219803,87097.0,87093.0,0.0114945]
[1763661616356,0.1625,87086.0,87085.0,0.001]
[1763661616562,0.00219803,87086.0,87085.0,0.00173267]
[1763661616955,0.00219803,87086.0,87085.0,0.00273267]
[1763661617258,0.00219803,87086.0,87085.0,0.002]
[1763661617259,0.16469803,87086.0,87085.0,0.002]
[1763661617461,0.04347,87084.0,87053.0,0.0114998]
[1763661617761,0.14858822,87080.0,87056.0,0.0114994]
[1763661618056,0.00219803,87079.0,87057.0,0.00073267]
[1763661618262,0.08209,87058.0,87057.0,0.00073267]
[1763661618455,0.16469803,87058.0,87057.0,0.00073267]
[1763661618655,0.16469803,87058.0,87024.0,0.0575186]
[1763661618656,0.04547,87048.0,87010.0,0.72384]
[1763661618969,0.00219803,87047.0,87018.0,0.00073267]
[1763661619257,0.00219803,87047.0,87030.0,0.14858822]
[1763661619463,0.011495,87090.0,87065.0,0.0114983]
[1763661619663,0.0023082,87083.0,87070.0,0.14858822]
[1763661619960,0.00248046,87083.0,87071.0,0.00073267]
[1763661620160,0.08209,87072.0,87071.0,0.00073267]
[1763661620464,0.00219803,87072.0,87071.0,0.00073267]
[1763661620962,0.08428803,87072.0,87071.0,0.00073267]
[1763661621158,0.1739992,87058.0,87057.0,0.001]
[1763661621357,0.00219803,87058.0,87042.0,0.0115012]
[1763661621557,0.08428803,87058.0,87057.0,0.00073267]
[1763661622052,0.00219803,87058.0,87028.0,0.011503]
[1763661622257,0.00219803,87058.0,87049.0,0.0115003]
[1763661622464,0.00219803,87058.0,87057.0,0.00073267]
[1763661622963,0.00017226,87059.0,87058.0,0.1703992]
[1763661623152,0.00237029,87059.0,87058.0,0.00073267]
[1763661623356,0.0114998,87054.0,87041.0,0.03944]
[1763661623656,0.00219803,87042.0,87041.0,0.11595267]
[1763661623864,0.00219803,87042.0,87041.0,0.19907267]
[1763661624164,0.00219803,87042.0,87041.0,0.04017267]
[1763661624356,0.16469803,87042.0,87041.0,0.03944]
[1763661624559,0.16469803,87042.0,87041.0,0.04117267]
[1763661624756,0.00219803,87042.0,87041.0,0.04117267]
[1763661625062,0.00219803,87042.0,87041.0,0.19907267]
[1763661625256,0.00219803,87042.0,87041.0,0.20007267]
[1763661625456,0.00219803,87042.0,87041.0,0.04117267]
[1763661625756,0.00219803,87042.0,87041.0,0.04017267]
[1763661626151,0.00219803,87042.0,87034.0,0.00010606]
[1763661626152,0.1625,87035.0,87034.0,0.00010606]
[1763661626352,0.16469803,87035.0,87034.0,0.01234113]
[1763661626559,0.16469803,87035.0,87034.0,0.00010606]
[1763661626758,0.0115047,87017.0,87014.0,0.11288]
[1763661626958,0.02040917,87035.0,87015.0,0.00073267]
[1763661626959,0.16469803,87016.0,87015.0,0.00073267]
[1763661627162,0.00219803,87016.0,87015.0,0.00073267]
[1763661627464,0.17620273,87016.0,87015.0,0.00073267]
[1763661627661,0.00219803,87016.0,86998.0,0.011507]
[1763661627867,0.00232104,87016.0,87015.0,0.00073267]
[1763661628167,0.0115,87053.0,87039.0,0.0115017]
[1763661628466,0.19405822,87060.0,87015.0,0.001]
[1763661628467,0.0115018,87038.0,87015.0,0.001]
[1763661628658,0.19394822,87040.0,87016.0,0.00219803]
[1763661628964,0.01844226,87053.0,87020.0,0.19234822]
[1763661629261,0.08209,87049.0,87048.0,0.0115005]
[1763661629462,0.30237939,87060.0,87048.0,0.00219803]
[1763661629658,0.0114995,87056.0,87048.0,0.00219803]
[1763661629858,0.00017236,87057.0,87048.0,0.01369853]
[1763661630060,0.00012942,87056.0,87048.0,0.00219803]
[1763661630260,0.15003,87054.0,87048.0,0.00219803]
[1763661630461,0.00012942,87056.0,87039.0,0.0115017]
[1763661630665,0.07705,87050.0,87049.0,0.0115004]
[1763661630869,0.07705,87050.0,87049.0,0.01369843]
[1763661631165,0.15003,87050.0,87049.0,0.00219803]
[1763661631366,0.15003,87049.0,87033.0,0.0115025]
[1763661631666,0.15003,87049.0,87039.0,0.0115017]
[1763661631862,0.15003,87049.0,87034.0,0.00219803]
[1763661631863,0.0115005,87048.0,87040.0,0.00219803]
[1763661632166,0.14858822,87050.0,87028.0,0.00017236]
[1763661632167,0.15003,87029.0,87028.0,0.00017236]
[1763661632373,0.15015942,87029.0,87028.0,0.00017236]
[1763661632562,0.00012942,87029.0,87028.0,0.07971039]
[1763661632762,0.00012942,87029.0,87028.0,0.15432039]
[1763661634255,0.00017236,87037.0,87036.0,0.15195]
[1763661634454,0.16679371,87060.0,87036.0,0.15195]
[1763661634455,0.04015959,87057.0,87036.0,0.16565013]
[1763661634659,0.01820549,87060.0,87056.0,0.0114995]
[1763661634864,0.04015959,87067.0,87059.0,0.00219803]
[1763661635060,0.04015959,87067.0,87037.0,0.04596]
[1763661635061,0.07164,87038.0,87037.0,0.04596]
[1763661635367,0.07164,87042.0,87041.0,0.00219803]
[1763661635562,0.17040943,87042.0,87041.0,0.00219803]
[1763661636065,0.00017236,87050.0,87049.0,0.0888404]
[1763661636372,0.14421236,87050.0,87049.0,0.00219803]
[1763661636668,0.0115009,87046.0,87033.0,0.00017236]
[1763661636875,0.14404,87035.0,87034.0,0.00219803]
[1763661637174,0.02637471,87035.0,87034.0,0.00219803]
[1763661637671,0.02637471,87035.0,87033.0,0.00017236]
[1763661637672,0.1555424,87034.0,87033.0,0.00017236]
[1763661637965,0.0282292,87034.0,87033.0,0.01487289]
[1763661638557,0.0282292,87034.0,87033.0,0.09121289]
[1763661638857,0.0282292,87034.0,87033.0,0.16582289]
[1763661639263,0.00185449,87034.0,87033.0,0.16582289]
[1763661640872,0.00017236,87050.0,87033.0,0.16582289]
[1763661640873,0.00017236,87050.0,87049.0,0.1634504]
[1763661641059,0.00017236,87050.0,87049.0,0.16564843]
[1763661641258,0.04015959,87065.0,87061.0,0.1634488]
[1763661641465,0.04015959,87065.0,87064.0,0.00219803]
[1763661641869,0.04015959,87065.0,87064.0,0.15414803]
[1763661642077,0.05897317,87067.0,87064.0,0.00219803]
[1763661642374,0.18519959,87065.0,87064.0,0.00219803]
[1763661642561,0.04115959,87065.0,87064.0,0.16564643]
[1763661642766,0.001,87065.0,87064.0,0.16564643]
[1763661642960,0.14504,87065.0,87057.0,0.00017236]
[1763661643160,0.14404,87058.0,87057.0,0.00017236]
[1763661643770,0.001,87065.0,87058.0,0.0114992]
[1763661643966,0.001,87065.0,87064.0,0.00219803]
[1763661644568,0.001,87065.0,87057.0,0.00017236]
[1763661644569,0.1555392,87058.0,87057.0,0.00017236]
[1763661644866,0.04108275,87058.0,87057.0,0.15432039]
[1763661645067,0.04108275,87059.0,87058.0,0.1634492]
[1763661645269,0.04108275,87059.0,87058.0,0.16564723]
[1763661645468,0.06162413,87063.0,87062.0,0.0114987]
[1763661645668,0.06162413,87064.0,87062.0,0.01369673]
[1763661645872,0.1555392,87058.0,87057.0,0.00017236]
[1763661646074,0.011501,87045.0,87020.0,0.19131822]
[1763661646272,0.011501,87045.0,87040.0,0.0115015]
[1763661646474,0.011501,87045.0,87040.0,0.00219803]
[1763661646661,0.0115022,87036.0,87021.0,0.09948]
[1763661646862,0.0410604,87046.0,87021.0,0.09948]
[1763661646863,0.14404,87023.0,87022.0,0.00219803]
[1763661647075,0.0410604,87028.0,87027.0,0.07734]
[1763661647263,0.00017236,87031.0,87027.0,0.00219803]
[1763661647470,0.00017236,87031.0,87030.0,0.19468]
[1763661647668,0.06161789,87042.0,87030.0,0.19468]
[1763661647669,0.04108644,87040.0,87039.0,0.1634517]
[1763661647863,0.08223376,87053.0,87039.0,0.1634517]
[1763661647864,0.04108644,87049.0,87048.0,0.07734]
[1763661648071,4e-08,87051.0,87050.0,0.15195]
[1763661648265,0.09337794,87071.0,87070.0,0.15195]
[1763661648465,0.23741794,87071.0,87070.0,0.00219803]
[1763661648674,0.04508,87084.0,87070.0,0.00219803]
[1763661648874,0.00017236,87079.0,87077.0,0.0114967]
[1763661649176,0.00017236,87079.0,87078.0,0.00219803]
[1763661649368,0.00017236,87079.0,87078.0,0.15414803]
[1763661650076,0.09102913,87101.0,87078.0,0.00219803]
[1763661650278,0.0114943,87096.0,87079.0,0.0114964]
[1763661650470,0.14858822,87100.0,87089.0,0.011495]
[1763661650779,0.08223376,87107.0,87099.0,0.0114937]
[1763661650969,0.011494,87098.0,87090.0,0.00219803]
[1763661651174,0.011494,87098.0,87090.0,0.00237029]
[1763661651376,0.00017226,87107.0,87096.0,0.0114941]
[1763661651673,0.14404,87098.0,87097.0,0.00219803]
[1763661651871,0.00117226,87107.0,87097.0,0.00219803]
[1763661652070,0.00117226,87107.0,87098.0,0.0114939]
[1763661652267,0.00117226,87107.0,87100.0,0.0114937]
[1763661652467,0.00117226,87107.0,87102.0,0.0114934]
[1763661652768,0.0114929,87106.0,87091.0,0.0114948]
[1763661652972,0.14858822,87101.0,87092.0,0.00219803]
[1763661653170,0.14404,87103.0,87092.0,0.01369263]
[1763661653372,0.0258453,87102.0,87096.0,0.0114941]
[1763661653581,0.0258453,87101.0,87097.0,0.00219803]
[1763661653876,0.0258453,87100.0,87098.0,0.0114939]
[1763661654174,0.0258453,87100.0,87090.0,0.00017226]
[1763661654175,0.00117226,87107.0,87099.0,0.00219803]
[1763661654477,0.02584811,87106.0,87099.0,0.01369173]
[1763661654668,0.02584811,87105.0,87104.0,0.1634431]
[1763661654873,0.00117226,87107.0,87104.0,0.15414803]
[1763661654874,0.02584811,87106.0,87104.0,0.15414803]
[1763661655182,0.0114939,87098.0,87090.0,0.00017226]
[1763661655476,0.02584811,87097.0,87091.0,0.01369283]
[1763661655781,0.02584811,87096.0,87095.0,0.1634443]
[1763661655974,0.02584811,87096.0,87095.0,0.16564233]
[1763661656568,0.02584811,87096.0,87095.0,0.15414803]
[1763661657581,0.00017226,87107.0,87106.0,0.15195]
[1763661657880,0.00017226,87107.0,87106.0,0.15414803]
[1763661658074,0.16007932,87120.0,87106.0,0.00219803]
[1763661658275,0.14404,87107.0,87106.0,0.00219803]
[1763661658674,0.01875019,87117.0,87106.0,0.00219803]
[1763661658975,0.14404,87107.0,87106.0,0.00219803]
[1763661659173,0.18912,87104.0,87103.0,0.00017226]
[1763661659383,0.04508,87104.0,87092.0,0.0114946]
[1763661659576,0.0114942,87097.0,87093.0,0.00219803]
[1763661660277,0.14404,87084.0,87083.0,0.00017226]
[1763661660484,0.14404,87084.0,87045.0,0.72444]
[1763661660485,0.07164,87046.0,87045.0,0.72444]
[1763661660777,0.04508,87056.0,87046.0,0.0115008]
[1763661660977,0.14404,87046.0,87045.0,0.72444]
[1763661661169,0.04508,87056.0,87045.0,0.72663803]
[1763661661372,0.14858822,87070.0,87045.0,0.72663803]
[1763661661674,0.14858822,87070.0,87058.0,0.15195]
[1763661661675,0.00017226,87059.0,87058.0,0.15195]
[1763661661880,0.00017226,87059.0,87051.0,0.0115]
[1763661661881,0.14421226,87059.0,87051.0,0.0115]
[1763661662075,0.14404,87048.0,87047.0,0.0115006]
[1763661662268,0.14404,87048.0,87047.0,0.01369863]
[1763661662478,0.14404,87048.0,87047.0,0.00219803]
[1763661662785,0.04508,87058.0,87054.0,0.0114996]
[1763661663074,0.00017226,87059.0,87057.0,0.01369733]
[1763661663279,0.00017226,87059.0,87058.0,0.14036]
[1763661663474,0.00017226,87059.0,87058.0,0.14255803]
[1763661663877,0.06876,87079.0,87078.0,0.0114966]
[1763661664078,0.06876,87079.0,87058.0,0.00219803]
[1763661664079,0.06876,87067.0,87066.0,0.0114981]
[1763661664277,0.03014352,87080.0,87078.0,0.00219803]
[1763661664278,0.14244,87079.0,87078.0,0.00219803]
[1763661664672,0.04418,87066.0,87058.0,0.001]
[1763661664878,0.17873174,87080.0,87071.0,0.0114975]
[1763661665079,0.14244,87073.0,87072.0,0.00219803]
[1763661665883,0.00017226,87078.0,87072.0,0.00219803]
[1763661666084,0.00017226,87078.0,87077.0,0.0114967]
[1763661666277,0.00017226,87078.0,87077.0,0.00219803]
[1763661666477,0.14261226,87078.0,87077.0,0.00219803]
[1763661667077,0.00017226,87078.0,87066.0,0.011498]
[1763661667281,0.14244,87076.0,87067.0,0.00219803]
[1763661667483,0.00117226,87078.0,87077.0,0.14036]
[1763661667683,0.00117226,87078.0,87077.0,0.00219803]
[1763661667880,0.14261226,87078.0,87053.0,0.00017226]
[1763661668178,0.00017226,87078.0,87059.0,0.00219803]
[1763661668373,0.14244,87054.0,87053.0,0.00017226]
[1763661668585,0.14244,87027.0,87026.0,0.09410709]
[1763661668777,0.04418,87048.0,87026.0,0.00219803]
[1763661668981,0.0115021,87037.0,87026.0,0.00219803]
[1763661669189,0.14858822,87040.0,87026.0,0.00219803]
[1763661669591,0.0115021,87036.0,87028.0,0.0115031]
[1763661669781,0.16008982,87040.0,87034.0,0.0115023]
[1763661669984,0.00017236,87042.0,87029.0,0.00219803]
[1763661669985,0.0115029,87030.0,87029.0,0.00219803]
[1763661670291,0.0115029,87030.0,87026.0,0.001]
[1763661670292,0.14244,87027.0,87026.0,0.001]
[1763661670490,0.14244,87027.0,87026.0,0.00319803]
[1763661670888,0.0115015,87041.0,87031.0,0.0115027]
[1763661671086,0.14244,87033.0,87032.0,0.00219803]
[1763661671495,0.16126848,87033.0,87032.0,0.01370063]
[1763661671794,0.00017236,87042.0,87032.0,0.01370063]
[1763661671795,0.00017236,87042.0,87032.0,0.00219803]
[1763661671992,0.00017236,87042.0,87040.0,0.0115015]
[1763661672192,0.06893236,87042.0,87041.0,0.00219803]